Cogmind - Beta 11.1 @@@ ROGUE MODE // 2022.06.09 @ 23:42:55 Player: Ruxi Result: Destroyed by 8R-AWN with 8R-AWN's Boregun Performance ------------- Evolutions (0) 0 Regions Visited (3) 600 Robots Destroyed (28) 140 Value Destroyed (612) 612 Prototype IDs (23) 460 Alien Tech Used (0) 0 Bonus (-138) -138 TOTAL SCORE: 1674 Bonus ------- Aligned with FarCom 300 Friendly Fire -438 Cogmind --------- Core Integrity 0/250 Matter 80/300 Energy 250/250 System Corruption 1% Temperature Cool (0) Movement Treading (160) Location -10/Exiles Parts ------- > --- POWER (1) -------- Ion Engine > --- PROPULSION (2) --- Light Treads Light Treads > --- UTILITY (2) ------ Heat Sink Large Storage Unit > --- WEAPON (2) ------- Improved Light Cannon Improved Light Cannon > --- INVENTORY (15) --- Light Treads Armored Wheel Medium Matter Pod (100) Medium Matter Pod (100) Medium Matter Pod (23) Large Matter Pod (0) Light Armor Plating Tractor Beam Improved Light Cannon Improved Light Cannon Peak State ------------ > --- POWER ------------ Ion Engine > --- PROPULSION ------- Armored Wheel Armored Wheel > --- UTILITY ---------- Large Storage Unit > --- WEAPON ----------- (None) > --- INVENTORY -------- Large Matter Pod Army-in-a-Box AWS/Thermal Improved Light Cannon Improved Light Cannon Improved Light Cannon Grenade Launcher Grenade Launcher Heavy Hammer [Rating: 14] Favorites ----------- Power Ion Engine Engine Ion Engine Propulsion Light Treads Treads Light Treads Leg Aluminum Leg Wheel Armored Wheel Utility Large Storage Unit Device Sensor Array Storage Large Storage Unit Protection Light Armor Plating Weapon EM Shotgun Energy Gun EM Shotgun Ballistic Gun Light Assault Rifle Ballistic Cannon Improved Light Cannon Launcher Grenade Launcher Build | -11 -10 -10 -10 ------- Run | Scr Mat Min Exi Slots Evolved . | . . . . Power . | . . . . Propulsion . | . . . . Utility . | . . . . Weapon . | . . . . Parts Attached 39 | . 20 4 15 Power 1 | . 1 . . Engine 1 | . 1 . . Core . | . . . . Reactor . | . . . . Propulsion 7 | . 4 . 3 Treads 5 | . 2 . 3 Leg . | . . . . Wheel 2 | . 2 . . Hover . | . . . . Flight . | . . . . Utility 18 | . 10 . 8 Device 11 | . 7 . 4 Storage 3 | . 2 . 1 Processor . | . . . . Hackware . | . . . . Protection 4 | . 1 . 3 Artifact . | . . . . Weapon 13 | . 5 4 4 Energy Gun 7 | . 5 2 . Energy Cannon . | . . . . Ballistic Gun . | . . . . Ballistic Cannon 2 | . . . 2 Launcher 4 | . . 2 2 Special Weapon . | . . . . Impact Weapon . | . . . . Slashing Weapon . | . . . . Piercing Weapon . | . . . . Special Melee Weapon . | . . . . Unidentified Prototypes . | . . . . Parts Lost 1 | . 1 . . Power . | . . . . Propulsion . | . . . . Utility . | . . . . Weapon 1 | . 1 . . Highest Loss Streak 1 | . 1 . . To Critical Strikes . | . . . . Average Slot Usage (%) 87 | . 99 100 66 Engine 14 | . 14 14 14 Treads 10 | . 14 . 6 Leg 6 | . 12 . . Wheel 10 | . . 28 21 Device 10 | . 13 14 5 Storage 14 | . 14 14 14 Energy Gun 16 | . 28 19 . Naked Turns . | . . . . Heaviest Build 36 | 13 31 31 36 Greatest Support 40 | 20 40 24 40 Greatest Overweight (x) 1 | . 1 1 1 Average Overweight (x) . | . . 1 . Largest Inventory Capacity 15 | . 15 15 15 Average Capacity 12 | . 9 15 15 Most Carried 15 | . 15 15 15 Average Carried 10 | . 9 15 11 Final Capacity 15 | 8 15 15 15 Final Carried 15 | 6 15 15 10 Class Distribution -------------------- 100% | Mutant Dominant Class ---------------- Mutant | -10/Materials Mutant | -10/Mines Mutant | -10/Exiles Resources | -11 -10 -10 -10 ----------- Run | Scr Mat Min Exi Matter Collected 869 | 200 175 40 454 Remotely 40 | . . . 40 Salvage Created 825 | . 728 93 4 Parts 61 | . 44 17 . Haulers Intercepted 2 | . 2 . . Recyclers Shooed . | . . . . Parts Field Recycled . | . . . . Retrieved Matter . | . . . . Parts Self-Destructed . | . . . . Prevented . | . . . . Kills | -11 -10 -10 -10 ------- Run | Scr Mat Min Exi Combat Hostiles Destroyed 29 | . 14 9 6 Guns 14 | . 10 4 . AOE 15 | . 4 5 6 Classes Destroyed 5 | . 4 . 1 Hauler 2 | . 2 . . Watcher 3 | . 3 . . Swarmer 12 | . 3 9 . Grunt 11 | . 11 . . Assembled 7 | . . . 7 Best Kill Streak 6 | . 3 3 6 Combat Bots Only 6 | . 3 3 6 Max Kills in Single Turn 4 | . 2 3 4 Gunslinging 1 | . . 1 . Exploded 4 | . 2 3 4 Melee . | . . . . Uniques/NPCs Destroyed . | . . . . Combat | -11 -10 -10 -10 -------- Run | Scr Mat Min Exi Damage Taken 1276 | . 347 202 727 Core 272 | . 53 34 185 Absorbed by Shields . | . . . . Core Remaining (%) 100 | 100 . . . Volleys Fired 73 | . 34 11 28 Largest 2 | . 2 2 2 Hottest 90 | . 90 85 78 Shots Fired 140 | . 67 17 56 Gun 82 | . 67 15 . Cannon 50 | . . . 50 Launcher 8 | . . 2 6 Special . | . . . . Kinetic 50 | . . . 50 Thermal . | . . . . Explosive 8 | . . 2 6 Electromagnetic 82 | . 67 15 . Robot Hit Streak 11 | . 11 3 8 Robot Miss Streak 4 | . 3 3 4 Penetration Max . | . . . . Secondary Targets 1 | . . 1 . Max Gunslinging Chain 1 | . . 1 . Shots Hit Robots 98 | . 51 8 39 Core Hits 71 | . 33 11 27 Critical Kills . | . . . . Critical Parts Destroyed . | . . . . Critical Strikes 1 | . . . 1 Blast 1 | . . . 1 Melee Attacks . | . . . . Impact . | . . . . Slashing . | . . . . Piercing . | . . . . Sneak Attacks . | . . . . Combat Hostiles . | . . . . Follow-up Attacks . | . . . . Damage Inflicted 2513 | . 904 262 1347 Guns 838 | . 741 97 . Cannons 757 | . . . 757 Explosions 918 | . 163 165 590 Melee . | . . . . Ramming . | . . . . Kinetic 757 | . . . 757 Thermal 252 | . 163 89 . Explosive 666 | . . 76 590 Electromagnetic 838 | . 741 97 . Impact . | . . . . Slashing . | . . . . Piercing . | . . . . Highest Corruption 1 | . 1 1 1 Average Corruption 1 | . 1 1 1 Corruption Purged . | . . . . Corruption Blocked . | . . . . Effects 13 | . 4 2 7 Message Errors 2 | . . . 2 Matter Fused 4 | . . 2 2 Heat Flow Errors 3 | . 1 . 2 Data Loss (minor) 2 | . 2 . . Data Loss (major) 1 | . . . 1 Alerts 1 | . 1 . . Overload Shots . | . . . . Overflow Damage 15 | . . . 15 Projectiles . | . . . . Explosions 15 | . . . 15 Melee . | . . . . Knockbacks 16 | . . . 16 Impact . | . . . . Kinetic 16 | . . . 16 Secondary . | . . . . Self-Inflicted Damage 109 | . 64 45 . Shots 4 | . 2 2 . Rammed . | . . . . Targets Rammed . | . . . . Kicked . | . . . . Crushed . | . . . . Highest Temperature 250 | . 240 84 250 Average Temperature 61 | . 53 41 87 Received Heat Transfer 135 | . 135 . . Siege Activations . | . . . . Robots Corrupted . | . . . . Combat Hostiles . | . . . . Parts Fried 5 | . 4 1 . Impact Corruptions . | . . . . Robots Melted . | . . . . Combat Hostiles . | . . . . Parts Melted . | . . . . Heat Transferred 250 | . 250 . . Parts Sabotaged . | . . . . Parts Stolen . | . . . . Parts Stripped . | . . . . Power Chain Reactions 4 | . 2 2 . Missiles Intercepted . | . . . . Alert | -11 -10 -10 -10 ------- Run | Scr Mat Min Exi Peak Influence 309 | . 222 309 . Initial . | . . . . Average 76 | . 54 233 . Maximum Alert Level 1 | . 1 1 . Low Security (%) 87 | . 98 9 . Level 1 12 | . 1 90 . Level 2 . | . . . . Level 3 . | . . . . Level 4 . | . . . . Level 5 . | . . . . High Security . | . . . . Max Security . | . . . . Squads Dispatched 3 | . 3 . . Investigation 3 | . 3 . . Extermination . | . . . . Reinforcement . | . . . . Assault . | . . . . Garrison . | . . . . Intercept . | . . . . Searches Triggered . | . . . . Construction Impeded . | . . . . Haulers Reinforced . | . . . . Active Scanning Responses . | . . . . Cargo Convoy Interrupts . | . . . . Stealth | -11 -10 -10 -10 --------- Run | Scr Mat Min Exi Distress Signals . | . . . . Communications Jammed . | . . . . Distress Signals . | . . . . Times Spotted 38 | . 22 9 7 Peak Tracking Total 8 | . 3 3 8 Tactical Retreats 3 | . 3 . . Traps | -11 -10 -10 -10 ------- Run | Scr Mat Min Exi Traps Triggered 3 | . 3 . . Indirectly . | . . . . Trap Hack Attempts . | . . . . Triggered . | . . . . Disarmed . | . . . . Reprogrammed . | . . . . Reused . | . . . . Traps Extracted . | . . . . Installed . | . . . . Triggered 1 | . 1 . . Machines | -11 -10 -10 -10 ---------- Run | Scr Mat Min Exi Machines Disabled 7 | . 1 3 3 Max in Single Turn 3 | . 1 3 1 Machines Sabotaged . | . . . . Garrisons Compromised . | . . . . Overloaded Fab Kills . | . . . . Hacking | -11 -10 -10 -10 --------- Run | Scr Mat Min Exi Machines Accessed 8 | . 7 . 1 Terminals 6 | . 6 . . Fabricators . | . . . . Repair Stations . | . . . . Recycling Units 1 | . 1 . . Scanalyzers . | . . . . Garrison Access . | . . . . Total Hacks 21 | . 20 . 1 Successful 10 | . 9 . 1 Failed 11 | . 11 . . Catastrophic 2 | . 2 . . Database Lockouts . | . . . . Manual 21 | . 20 . 1 Terminals 18 | . 18 . . Fabricators . | . . . . Repair Stations . | . . . . Recycling Units 2 | . 2 . . Scanalyzers . | . . . . Garrison Access . | . . . . Terminal Hacks 5 | . 4 . 1 Branch Access Points 1 | . 1 . . Terminal Index 1 | . 1 . . Unreport Threat 2 | . 2 . . EX-Prototype ID Bank 1 | . . . 1 Fabricator Hacks . | . . . . Repair Station Hacks . | . . . . Recycling Unit Hacks . | . . . . Scanalyzer . | . . . . Garrison Access Hacks . | . . . . Unauthorized Hacks 5 | . 5 . . Terminals 4 | . 4 . . Botnet 3 | . 3 . . Operators 1 | . 1 . . Fabricators . | . . . . Repair Stations . | . . . . Recycling Units 1 | . 1 . . Mask 1 | . 1 . . Scanalyzers . | . . . . Garrison Access . | . . . . Data Cores Recovered . | . . . . Used . | . . . . Hacking Detections 6 | . 6 . . Full Trace Events . | . . . . Feedback Events . | . . . . Feedback Blocked . | . . . . Robot Schematics Acquired . | . . . . Robots Built . | . . . . Authchips . | . . . . Time . | . . . . Total Robot Build Rating . | . . . . Part Schematics Acquired . | . . . . Parts Built . | . . . . Authchips . | . . . . Time . | . . . . Total Part Build Rating . | . . . . Parts Repaired . | . . . . Time . | . . . . Parts Recycled . | . . . . Recycled Matter . | . . . . Retrieved Matter . | . . . . Retrieved Components . | . . . . Parts Scanalyzed . | . . . . Part Schematics Acquired . | . . . . Parts Damaged . | . . . . Bothacking | -11 -10 -10 -10 ------------ Run | Scr Mat Min Exi Used RIF Installer . | . . . . Robots Hacked . | . . . . Non-combat . | . . . . Combat . | . . . . Robot Hacks Applied . | . . . . Relay Couplers Released . | . . . . Fabnet Peak Effective % . | . . . . Robots Rewired . | . . . . Allies Hacked . | . . . . Hacks Repelled . | . . . . Allies | -11 -10 -10 -10 -------- Run | Scr Mat Min Exi Total Allies . | . . . . Largest Group . | . . . . Highest-Rated Group . | . . . . Highest-Rated Ally . | . . . . Total Orders . | . . . . Ally Attacks . | . . . . Total Damage . | . . . . Kills . | . . . . Allies Corrupted . | . . . . Allies Melted . | . . . . Intel | -11 -10 -10 -10 ------- Run | Scr Mat Min Exi Robot Analysis Total . | . . . . Derelict Logs Recovered 2 | . . 2 . Drone Launches . | . . . . Drone Recoveries . | . . . . Exploration | -11 -10 -10 -10 ------------- Run | Scr Mat Min Exi Turns Passed 3384 | . 1838 256 1290 Spaces Moved 2184 | 1 950 208 1025 Core . | . . . . Treads 662 | . 535 . 127 Legs 407 | 1 406 . . Wheels 1115 | . 9 208 898 Hover . | . . . . Flight . | . . . . Fastest Speed 105 | 120 105 105 105 Average Speed 124 | 120 142 105 111 Slowest Speed 160 | 120 160 105 160 Overloaded Moves . | . . . . Propulsion Burnouts . | . . . . Robots Hopped . | . . . . Cave-ins Triggered . | . . . . Exploration Rate (%) 59 | 2 97 70 70 Regions Visited 3 Branch Regions 2 Pre-discovered Areas . | . . . . Known Exits Taken 2 | . 1 1 . Unknown Exits Taken 1 | 1 . . . Scrap Searched 1 | . . 1 . Spaces Dug . | . . . . Terrain Destroyed 45 | . 3 15 27 Melee . | . . . . Projectile 7 | . . . 7 AOE 38 | . 3 15 20 Terrain Rammed . | . . . . Walls Destroyed . | . . . . Machines Disabled . | . . . . Actions | -11 -10 -10 -10 --------- Run | Scr Mat Min Exi Total 2722 | . 1374 226 1122 Wait 333 | . 324 4 5 Move 2181 | . 949 207 1025 Hop . | . . . . Pick Up 46 | . 25 . 21 Fast Attach 5 | . 4 . 1 Attach 5 | . 1 . 4 Detach 2 | . 1 . 1 Swap 29 | . 15 4 10 Drop 48 | . 21 . 27 Fire 73 | . 34 11 28 Melee . | . . . . Ram . | . . . . Kick . | . . . . Crush . | . . . . Escape Stasis . | . . . . Rewire . | . . . . Trap . | . . . . Miscellaneous . | . . . . Route ------- -11/Scrapyard -10/Materials (discovered 5 exits: [*Mat x3] / *Min x2) -10/Mines (discovered 2 exits: [*Mat] / *Exi) -10/Exiles (discovered 1 exit: [*Min]) History --------- Turn | Location | Event 1 | -11/Scrapyard | Discovered new exit (range 0) 1 | -11/Scrapyard | Entered Materials 331 | -10/Materials | Build established: Mutant 425 | -10/Materials | Discovered new exit (range 16) 495 | -10/Materials | Discovered new exit (range 5) 884 | -10/Materials | Discovered new exit (range 11) 1085 | -10/Materials | Discovered new exit (range 16) 1106 | -10/Materials | Identified exit to Mines 1839 | -10/Materials | Entered Mines 1897 | -10/Mines | Discovered new exit (range 12) 1934 | -10/Mines | Identified exit to Exiles 2091 | -10/Mines | Deemed a non-threat by the Exiles lab entrance 2095 | -10/Mines | Entered Exiles 2113 | -10/Exiles | Discovered new exit (range 14) 2145 | -10/Exiles | Met 8R-AWN 2158 | -10/Exiles | Met EX-HEX 2200 | -10/Exiles | Met EX-DEC 2230 | -10/Exiles | Met EX-BIN 2245 | -10/Exiles | Aligned with FarCom system 2246 | -10/Exiles | Given EX-Vault access code 2272 | -10/Exiles | Opened EX-Vault 2297 | -10/Exiles | Warned to stay clear of 0b10 Research branches 2660 | -10/Exiles | Found AWS/Thermal 2663 | -10/Exiles | Found Skeleton Box 2682 | -10/Exiles | Found Army-in-a-Box 3270 | -10/Exiles | Attacked by the Exiles 3302 | -10/Exiles | Core integrity fell below 50% 3350 | -10/Exiles | Core integrity fell below 20% 3385 | -10/Exiles | Destroyed by 8R-AWN with 8R-AWN's Boregun Last Messages --------------- 03362_ 8R-AWN knocked back. 03365_ Penetrated by HV Slug. 03365_ HV Slug penetrates Earth. 03365_ HV Slug penetrates Wall. 03365_ HV Slug penetrates Earth. 03368_ 8R-AWN knocked back. 03370_ Penetrated by HV Slug. 03370_ HV Slug penetrates Earth. 03370_ Penetrated by HV Slug. 03370_ HV Slug penetrates Earth. 03374_ 8R-AWN knocked back. 03375_ Penetrated by HV Slug. 03375_ HV Slug penetrates Earth. 03380_ Penetrated by HV Slug. 03380_ HV Slug penetrates Earth. 03380_ HV Slug penetrates Wall. 03380_ HV Slug penetrates Earth. 03380_ 8R-AWN knocked back. 03382_ Earth collapses. 03385_ Penetrated by HV Slug. Map ----- +----------------------------------------------------+ | "?# #?#########??????????????????????????????? | | ??# #?#"""""""#??????????????????????????????? | | ??# #?#"""""""#??????????????????????????????? | | ??# #?#"""""""#??????????????????????????????? | | ?## ###"" """"#??????????????????????????????? | | ?#" """"#??????????????????????????????? | | ?#" """#??????????????????????????????? | | ?#" """#??????????????????????????????? | | ?#" """#??????????????????????????????? | | ?#" """#??????????????????????????????? | | ?#" """#??????????????????????????????? | | ?## """"??????????????????????????????? | | ??# """#?????#????????????????????????? | | ??#" "X" """"????# ????????????????????????? | | ??#" """ #????# ????????????????????????? | | ??#" """""""""#????# ????????????????????????? | | ?##" ###########????# ????????????????????????? | | ##"" #??????????????# ?##?????????????????????? | | #"" #??????????????# # #?????????????????????? | | """ ##??????????##?# # #?????????????????????? | | "" ##???#######;##; #?????????????????????? | | " #####""""""" ;# #?????????????????????? | | " """ " ;;##????????????????????? | | " ; #????????????????????? | | ; ?????????????????????? | | @##??????????#####??????? | | != / ;#?????????##" #??????? | | ###???????#" #??????? | | """""" " "#??????##" ##?????? | | #####""" % % "#????### ###???? | | ????#####""" % ##???# ##### | | ????????##""" %] ##?## #""" | | ?????????#"""" %] % ### | | ????????##"" g% ## | | ###??####"""" % ! % #### | | ####""" % % ""#?#"""""#### | | """" % #"""##?#######??# | | % ######???????????? | | ##????????????????? | | " ##?????????????????? | | " "" " ??????????????????? | | ""## ##""" " " "" ##?????????????????? | | #### ######""" """ #??????????????????? | | #??# #????###""""### ###??????????????????? | | ??## ####???######?# # #????????????????????? | | ??# "!#??????????######?##????????????????????? | | ??#" !#???????????????????????????????????????? | | ??#" "#???????????????????????????????????????? | | ??#!!"" "#???????????????????????????????????????? | | ??########???????????????????????????????????????? | +----------------------------------------------------+ Best States ------------- Heat Dissipation 35 Energy Generation 10 Energy Capacity 250 Matter Stores 300 Matter Capacity 300 Sight Range 16 Robot Scan Range 14 Terrain Scan Density 10 Additional Mass Support 6 Armor Coverage 150 Evasion (%) 55 Recoil Reduction 2 Item Schematics ----------------- None Robot Schematics ------------------ None Fabricated ------------ Nothing Alien Tech Used ----------------- None Achievements -------------- None Challenges ------------ None Game ------ Seed MassBladeCharger Manual? 0 Play Time 00:34:25 Cumulative 119.9 hours Start 2022.06.09 @ 23:06:41 End 2022.06.09 @ 23:42:55 Sessions 1 Manual Loads 0 Difficulty Rogue Special Mode None Game No. 79 Rogue 77 Adventurer 0 Explorer 2 Win Type - Total 0 Types 0/0/0/0/0/0/0/0/0 Lore% 27 Gallery% 38 Achievement% 32 Wizard Run 0 Options --------- ASCII 0 Keyboard 0 Movement Numpad Keybinds 0 Fullscreen 1 Font 18/SmallcapsGlow Map View 76x50 Tactical HUD 1 Map Filters NONE Filters NONE Steam 1 RUN: 3b587116-74a8-43f2-a736-88cbdd477b16